bitfinex-derivatives/quotes_SOLF0:USTF0_20240912
["timestamp","ask_amount","ask_price","bid_price","bid_amount"]
[1726107577265,1.288,135.27,135.26,3.3264]
[1726107577675,1.288,135.27,135.18,17.75]
[1726107578167,1.288,135.27,135.19,13.19968939]
[1726107578367,1.288,135.27,135.2,13.19968939]
[1726107578666,1.288,135.27,135.21,5.07686908]
[1726107578869,1.288,135.27,135.2,8.12299053]
[1726107579069,1.288,135.27,135.21,5.07673595]
[1726107579273,1.288,135.27,135.19,8.12299053]
[1726107579274,1.288,135.27,135.22,5.07673595]
[1726107579567,1.288,135.27,135.26,3.3264]
[1726107580164,21.0754,135.3,135.26,3.3264]
[1726107580472,17.75,135.3,135.27,3.3261]
[1726107580774,17.75,135.3,135.21,5.07914052]
[1726107580975,21.0754,135.3,135.22,5.07914052]
[1726107581169,17.75,135.28,135.22,5.07914052]
[1726107581374,17.75,135.28,135.2,2.69]
[1726107581578,17.75,135.28,135.25,3.3264]
[1726107581876,17.75,135.28,135.21,5.079418]
[1726107582072,17.75,135.28,135.24,3.3268]
[1726107582467,1.4187,135.27,135.24,3.3268]
[1726107584170,2.678,135.26,135.24,3.3268]
[1726107585563,2.678,135.26,135.23,3.3271]
[1726107586075,20.428,135.26,135.23,3.3271]
[1726107588067,20.428,135.26,135.24,3.3269]
[1726107589867,20.428,135.26,135.23,3.3271]
[1726107594769,20.428,135.26,135.22,3.3273]
[1726107595873,3.3259,135.29,135.23,3.3269]
[1726107596069,17.75,135.27,135.23,3.3269]
[1726107596281,17.75,135.27,135.23,3.327]
[1726107597284,20.4471,135.27,135.23,3.327]
[1726107597473,21.7386,135.27,135.23,3.327]
[1726107598080,11.36,135.24,135.22,3.3273]
[1726107598484,11.36,135.24,135.19,13.21330279]
[1726107598783,11.36,135.22,135.2,8.4084903]
[1726107598985,11.36,135.22,135.2,3.3277]
[1726107599173,11.36,135.22,135.19,8.13251249]
[1726107599379,11.36,135.22,135.21,3.3276]
[1726107600784,11.36,135.22,135.18,8.1284945]
[1726107600988,11.36,135.2,135.16,8.1284945]
[1726107601191,11.36,135.2,135.17,13.20816616]
[1726107601383,11.36,135.2,135.18,5.08006391]
[1726107601585,11.36,135.2,135.18,3.3282]
[1726107601786,3.9886,135.27,135.16,19.48810225]
[1726107602088,3.9886,135.27,135.17,30.95757992]
[1726107602280,3.9886,135.27,135.19,17.75]
[1726107602589,3.9886,135.27,135.25,3.3266]
[1726107602989,2.6971,135.27,135.25,3.3266]
[1726107603290,17.75,135.29,135.25,3.3266]
[1726107603792,17.75,135.29,135.26,3.3263]
[1726107603980,17.75,135.29,135.21,8.12019751]
[1726107603981,17.75,135.31,135.22,5.07545396]
[1726107604184,17.75,135.31,135.23,5.07545396]
[1726107604388,17.75,135.31,135.27,3.3261]
[1726107604586,17.75,135.31,135.23,8.11903036]
[1726107604794,17.75,135.31,135.22,1.328]
[1726107604981,17.75,135.31,135.23,5.07450613]
[1726107605185,17.75,135.31,135.26,3.3263]
[1726107605697,17.75,135.31,135.25,3.3266]
[1726107605884,17.75,135.29,135.25,3.3266]
[1726107606191,17.75,135.29,135.26,3.3263]
[1726107606698,17.75,135.29,135.24,5.07512097]
[1726107606896,17.75,135.29,135.22,1.328]
[1726107607094,17.75,135.29,135.23,5.07604137]
[1726107607295,17.75,135.29,135.24,3.3267]
[1726107607693,17.75,135.29,135.22,1.328]
[1726107607889,17.75,135.27,135.21,8.12152761]
[1726107608093,17.75,135.27,135.12,3.337506]
[1726107608094,17.75,135.22,135.14,13.20750392]
[1726107608393,17.75,135.16,135.15,5.0798092]
[1726107608995,17.75,135.16,135.13,8.12769472]
[1726107609697,3.3284,135.18,135.1,2.6988]
[1726107609895,228.0,135.37,135.1,20.4488]
[1726107610096,17.75,135.23,135.13,17.75]
[1726107610302,3.3262,135.27,135.21,3.3274]
[1726107610599,17.75,135.26,135.15,17.75]
[1726107610788,17.75,135.26,135.17,17.75]
[1726107610997,17.75,135.29,135.18,1.3115]
[1726107611495,17.75,135.31,135.2,17.75]
[1726107611697,17.75,135.31,135.21,1.3448]
[1726107612101,17.75,135.31,135.22,1.3802]
[1726107612398,28.38,135.32,135.22,1.3802]
[1726107613194,28.38,135.29,135.22,1.3802]
[1726107614889,3.3261,135.28,135.23,3.3271]
[1726107615192,28.38,135.29,135.22,1.3802]
[1726107616199,28.38,135.27,135.21,1.3448]
[1726107617803,28.38,135.27,135.22,3.3273]
[1726107619906,31.7061,135.27,135.22,3.3273]
[1726107620292,28.38,135.27,135.22,3.3273]
[1726107622403,28.38,135.27,135.21,1.3448]
[1726107623203,28.38,135.27,135.22,3.3272]
[1726107623607,28.38,135.27,135.23,3.3271]
[1726107624306,28.38,135.27,135.21,1.3448]
[1726107625207,28.38,135.27,135.23,3.327]
[1726107626905,28.38,135.27,135.24,3.3268]
[1726107627105,28.38,135.27,135.21,1.3448]
[1726107627309,28.38,135.29,135.25,3.3266]
[1726107627708,28.38,135.29,135.21,1.3448]
[1726107627909,28.38,135.31,135.21,1.3448]
[1726107628603,28.38,135.31,135.27,3.3259]
[1726107629415,31.7052,135.31,135.26,3.3263]
[1726107629717,31.7052,135.31,135.21,1.3448]
[1726107629718,28.38,135.31,135.21,1.3448]
[1726107629909,28.38,135.29,135.21,1.3448]
[1726107630112,3.326,135.28,135.23,3.3271]
[1726107631221,31.7057,135.29,135.24,3.3268]
[1726107631515,28.38,135.29,135.21,1.3448]
[1726107631909,28.38,135.27,135.22,3.3273]
[1726107633413,28.38,135.27,135.23,3.3271]
[1726107634110,17.75,135.27,135.22,3.3273]
[1726107634312,17.75,135.27,135.21,1.3448]
[1726107635011,17.75,135.27,135.23,3.3271]
[1726107635413,21.0761,135.27,135.22,3.3273]
[1726107637011,17.75,135.27,135.22,3.3273]
[1726107637510,17.75,135.27,135.21,1.3448]
[1726107637907,0.427,135.33,135.21,1.3448]
[1726107638116,17.75,135.27,135.23,3.3269]
[1726107638508,17.75,135.27,135.22,3.3272]
[1726107638706,17.75,135.27,135.21,1.3448]
[1726107639808,17.75,135.27,135.23,3.3271]
[1726107640006,17.75,135.27,135.21,1.3448]
[1726107640412,3.3265,135.26,135.21,1.3448]
[1726107641623,21.0762,135.27,135.21,1.3448]
[1726107642312,21.0762,135.27,135.21,4.6724]
[1726107642610,3.3264,135.26,135.21,1.3448]
[1726107642810,17.75,135.27,135.21,1.3448]
[1726107643013,3.3264,135.26,135.21,1.3448]
[1726107643312,17.75,135.27,135.22,3.3273]
[1726107644612,17.75,135.27,135.21,1.3448]
[1726107645119,3.3265,135.26,135.21,1.3448]
[1726107648021,21.0761,135.27,135.21,1.3448]
[1726107648727,17.75,135.29,135.21,1.3448]
[1726107648928,17.75,135.31,135.21,1.3448]
[1726107649229,0.427,135.33,135.21,1.3448]
[1726107649524,17.75,135.32,135.21,1.3448]
[1726107649729,18.97245729,135.31,135.21,1.3448]
[1726107650026,0.427,135.33,135.21,1.3448]
[1726107650027,17.75,135.32,135.21,1.3448]
[1726107650214,21.0751,135.32,135.21,1.3448]
[1726107650421,17.75,135.32,135.21,1.3448]
[1726107650727,3.3252,135.31,135.27,3.326]
[1726107651027,3.3252,135.31,135.21,1.3448]
[1726107651421,3.3252,135.31,135.26,3.3263]
[1726107652026,21.0754,135.3,135.25,3.3266]
[1726107653227,17.75,135.3,135.26,3.3264]
[1726107653434,3.3252,135.31,135.26,3.3264]
[1726107653916,21.0751,135.32,135.21,1.3448]
[1726107654523,3.3253,135.31,135.21,1.3448]
[1726107655228,3.3254,135.3,135.25,3.3264]
[1726107655426,21.0754,135.3,135.21,1.3448]
[1726107655622,21.0754,135.3,135.25,3.3265]
[1726107655929,21.0754,135.3,135.21,1.3448]
[1726107656821,21.0754,135.3,135.26,3.3263]
[1726107657222,3.3254,135.3,135.26,3.3263]
[1726107657426,3.3252,135.31,135.27,3.326]
[1726107657627,17.75,135.32,135.21,1.3448]
[1726107658230,3.3254,135.3,135.26,3.3262]
[1726107658437,3.3254,135.3,135.21,1.3448]
[1726107658731,3.3254,135.3,135.27,3.3261]
[1726107658932,3.3254,135.3,135.21,1.3448]
[1726107659526,3.3254,135.3,135.26,3.3262]
[1726107659937,3.3253,135.31,135.27,3.326]
[1726107660436,17.75,135.32,135.21,1.3448]
[1726107660735,3.3255,135.3,135.26,3.3262]
[1726107660936,17.75,135.32,135.21,1.3448]
[1726107661136,3.3253,135.31,135.26,3.3262]
[1726107661335,17.75,135.32,135.21,1.3448]
[1726107661529,102.94381703,135.41,135.24,17.75]
[1726107661729,3.324,135.36,135.32,3.3249]
[1726107662033,3.324,135.36,135.27,1.3911]
[1726107662237,3.324,135.36,135.32,3.3249]
[1726107662641,17.75,135.37,135.27,1.3911]
[1726107662844,0.4246,135.4,135.27,1.3911]
[1726107662845,17.75,135.35,135.27,1.3911]
[1726107663143,17.75,135.33,135.27,1.3911]
[1726107663327,17.75,135.33,135.25,2.5867]
[1726107664133,17.75,135.31,135.25,1.2973]
[1726107664329,17.75,135.31,135.23,1.3776]
[1726107664330,21.0754,135.31,135.26,3.3264]
[1726107664642,17.75,135.31,135.23,1.3776]
[1726107665140,3.3254,135.3,135.25,3.3264]
[1726107665337,17.75,135.31,135.23,1.3776]
[1726107666439,21.0751,135.31,135.26,3.3262]
[1726107667341,17.75,135.31,135.23,1.3776]
[1726107667535,18.1746,135.33,135.23,1.3776]
[1726107667732,18.1746,135.33,135.28,3.3257]
[1726107667935,21.4993,135.33,135.28,3.3257]
[1726107668136,21.4993,135.33,135.24,1.35]
[1726107668440,21.4993,135.33,135.28,3.3257]
[1726107668739,21.4993,135.33,135.24,1.35]
[1726107668945,17.75,135.33,135.29,3.3255]
[1726107669339,21.0747,135.33,135.24,19.1]
[1726107669639,17.75,135.33,135.29,3.3256]
[1726107669945,17.75,135.33,135.24,19.1]
[1726107670734,17.75,135.33,135.3,3.3252]
[1726107670942,17.75,135.35,135.3,3.3252]
[1726107671441,21.0743,135.35,135.3,3.3252]
[1726107671842,17.75,135.35,135.24,19.1]
[1726107672045,21.0738,135.37,135.27,17.75]
[1726107672244,21.0738,135.37,135.28,2.7194]
[1726107672245,17.75,135.37,135.28,2.7194]
[1726107672448,17.75,135.37,135.33,3.3247]
[1726107672748,17.75,135.37,135.28,2.7194]
[1726107673333,18.1745,135.39,135.28,2.7194]
[1726107674148,21.0733,135.39,135.3,17.75]
[1726107674643,17.75,135.39,135.3,17.75]
[1726107674849,17.75,135.39,135.31,1.308]
[1726107675544,21.0729,135.41,135.37,3.3236]
[1726107676139,3.323,135.4,135.36,3.3239]
[1726107676644,3.3232,135.39,135.35,3.3241]
[1726107676941,17.75,135.41,135.31,1.308]
[1726107677343,3.3232,135.39,135.34,3.3242]
[1726107677538,3.3232,135.39,135.31,1.308]
[1726107677539,17.75,135.39,135.31,1.308]
[1726107677744,3.3237,135.38,135.33,3.3246]
[1726107677942,17.75,135.37,135.31,1.308]
[1726107679146,3.324,135.36,135.32,3.3248]
[1726107679541,21.0737,135.37,135.32,3.3248]
[1726107679942,17.75,135.35,135.31,3.3251]
[1726107680648,3.3244,135.34,135.28,1.3275]
[1726107680848,17.75,135.35,135.28,1.3275]
[1726107681145,17.75,135.36,135.3,3.3252]
[1726107681552,17.75,135.36,135.29,3.3255]
[1726107682243,3.3245,135.34,135.29,3.3255]
[1726107682847,3.3245,135.34,135.3,3.3254]
[1726107683156,17.75,135.36,135.28,1.3275]
[1726107683347,17.75,135.38,135.28,1.3275]
[1726107683546,17.75,135.38,135.28,2.6165]
[1726107683745,21.0737,135.38,135.28,2.6165]
[1726107683950,17.75,135.4,135.29,19.0765]
[1726107684455,3.3234,135.39,135.34,3.3243]
[1726107684648,17.75,135.4,135.28,2.6165]
[1726107684847,17.75,135.36,135.28,2.6165]
[1726107685648,3.3246,135.34,135.3,3.3254]
[1726107685843,3.3246,135.34,135.28,2.6165]
[1726107686250,3.3247,135.33,135.26,17.75]
[1726107686543,17.75,135.34,135.23,2.7412]
[1726107686744,17.75,135.3,135.23,1.3813]
[1726107686957,17.75,135.28,135.18,17.75]
[1726107687357,17.75,135.3,135.2,17.75]
[1726107687767,3.3257,135.29,135.24,3.3267]
[1726107687964,17.75,135.3,135.2,17.75]
[1726107688166,228.0,135.36,135.27,3.3261]
[1726107688167,3.3253,135.31,135.27,3.3261]
[1726107688368,17.75,135.32,135.23,2.649]
[1726107688562,17.75,135.34,135.24,17.75]
[1726107688958,17.75,135.32,135.23,4.0568]
[1726107689865,17.75,135.34,135.23,4.0568]
[1726107690366,3.3252,135.31,135.26,3.3263]
[1726107692869,3.3249,135.32,135.27,3.3261]
[1726107693476,3.3253,135.31,135.26,3.3264]
[1726107694270,17.75,135.34,135.23,4.0568]
[1726107694868,3.3247,135.33,135.28,3.3259]
[1726107695064,17.75,135.34,135.23,4.0568]
[1726107695276,17.75,135.32,135.23,4.0568]
[1726107695461,3.3253,135.31,135.26,3.3262]
[1726107695668,17.75,135.32,135.23,4.0568]
[1726107696572,3.3254,135.31,135.23,4.0568]
[1726107697379,0.4235,135.38,135.23,4.0568]
[1726107697380,17.75,135.34,135.23,4.0568]
[1726107697678,3.3245,135.34,135.3,3.3254]
[1726107697877,17.75,135.36,135.27,17.75]
[1726107698375,3.3242,135.35,135.31,3.325]
[1726107698976,21.074,135.36,135.31,3.325]
[1726107699180,17.75,135.36,135.31,3.325]
[1726107699875,17.75,135.34,135.23,2.7677]
[1726107700274,17.75,135.34,135.24,17.75]
[1726107700471,17.75,135.34,135.27,3.3261]
[1726107700472,3.3249,135.33,135.27,3.3261]
[1726107701179,17.75,135.34,135.26,3.3263]
[1726107701778,17.75,135.34,135.27,3.326]
[1726107701977,17.75,135.34,135.23,2.7677]
[1726107702580,17.75,135.31,135.23,2.7677]
[1726107703378,17.75,135.31,135.21,1.3776]
[1726107703582,0.4268,135.33,135.21,1.3776]
[1726107703583,17.75,135.29,135.21,1.3776]
[1726107703976,17.75,135.29,135.22,3.3272]
[1726107704174,17.75,135.29,135.21,1.3776]
[1726107704582,3.3263,135.27,135.21,4.705]
[1726107705080,17.75,135.27,135.21,4.705]
[1726107705979,3.3264,135.26,135.21,4.705]
[1726107707776,3.3269,135.24,135.16,2.7346]
[1726107708584,3.3272,135.23,135.18,3.3283]
[1726107708984,17.75,135.23,135.17,3.3285]
[1726107709283,17.75,135.23,135.13,1.2878]
[1726107709478,17.75,135.23,135.13,2.6663]
[1726107709677,3.3274,135.22,135.16,3.3287]
[1726107710273,3.3274,135.22,135.17,3.3286]
[1726107711081,17.75,135.23,135.18,3.3283]
[1726107711684,17.75,135.23,135.07,2.6636]
[1726107711880,17.75,135.23,135.13,1.3478]
[1726107712377,3.3277,135.21,135.16,3.3286]
[1726107712680,18.1758,135.26,135.14,17.75]
[1726107712987,18.1758,135.26,135.18,3.3283]
[1726107713180,18.1758,135.26,135.15,1.4227]
[1726107713574,3.3269,135.24,135.19,3.3281]
[1726107715079,3.3267,135.25,135.19,3.3281]
[1726107715283,18.1758,135.26,135.15,1.4227]
[1726107715484,0.4258,135.26,135.16,17.75]
[1726107715877,245.75,135.34,135.22,3.3272]
[1726107716082,3.326,135.28,135.22,3.3272]
[1726107716480,21.0757,135.29,135.19,1.3345]
[1726107716786,21.0757,135.29,135.2,17.75]
[1726107717182,21.0757,135.29,135.23,3.3269]
[1726107717384,3.3259,135.28,135.23,3.3269]
[1726107717886,17.75,135.29,135.22,3.3273]
[1726107718191,3.326,135.28,135.19,1.3345]
[1726107718386,3.326,135.28,135.23,3.3269]
[1726107719092,21.0757,135.29,135.24,3.3268]
[1726107720087,17.75,135.29,135.25,3.3266]
[1726107720586,17.75,135.29,135.2,17.75]
[1726107720587,21.0756,135.29,135.24,3.3268]
[1726107720985,17.75,135.29,135.24,3.3268]
[1726107721194,17.75,135.31,135.2,17.75]
[1726107721497,17.75,135.31,135.21,1.3265]
[1726107721985,17.75,135.31,135.22,1.3656]
[1726107723092,3.3256,135.3,135.25,3.3264]
[1726107723494,17.75,135.31,135.25,3.3264]
[1726107723687,3.3255,135.3,135.25,3.3264]
[1726107723880,17.75,135.31,135.24,3.3268]
[1726107724289,3.3257,135.29,135.22,1.3656]
[1726107724485,17.75,135.26,135.19,1.3345]
[1726107725496,3.3268,135.25,135.2,3.3278]
[1726107725690,17.75,135.26,135.2,3.3278]
[1726107726285,3.3269,135.24,135.19,1.3345]
[1726107726797,17.75,135.26,135.19,1.3345]
[1726107727597,21.0765,135.26,135.21,3.3274]
[1726107727799,17.75,135.26,135.21,3.3274]
[1726107728290,3.3266,135.25,135.21,3.3274]
[1726107728491,17.75,135.26,135.21,3.3276]
[1726107728900,21.0765,135.26,135.19,1.3345]
[1726107729086,17.75,135.28,135.19,1.3345]
[1726107729290,17.75,135.28,135.2,1.3236]
[1726107729689,3.3263,135.27,135.22,3.3273]
[1726107729890,17.75,135.28,135.2,1.3236]
[1726107730289,17.75,135.26,135.2,3.3278]
[1726107730786,17.75,135.26,135.19,1.3345]
[1726107731190,17.75,135.26,135.14,1.3236]
[1726107731386,17.75,135.26,135.15,1.2883]
[1726107731791,3.3268,135.25,135.2,3.3277]
[1726107731994,17.75,135.26,135.15,1.2883]
[1726107732199,21.0765,135.26,135.21,3.3274]
[1726107732394,17.75,135.26,135.21,3.3274]
[1726107732594,17.75,135.26,135.15,1.2883]
[1726107733398,17.75,135.24,135.18,3.3283]
[1726107734097,3.3275,135.22,135.18,3.3283]
[1726107734305,17.75,135.24,135.17,3.3285]
[1726107734499,17.75,135.22,135.17,3.3285]
[1726107734693,17.75,135.22,135.15,3.329]
[1726107734893,0.4249,135.23,135.09,17.75]
[1726107734894,17.75,135.2,135.09,17.75]
[1726107735200,3.3284,135.18,135.09,17.75]
[1726107736201,3.3287,135.17,135.09,17.75]
[1726107736793,3.3287,135.17,135.13,3.3294]
[1726107736992,3.3284,135.18,135.13,3.3294]
[1726107737203,17.75,135.2,135.09,17.75]
[1726107737596,3.3286,135.17,135.13,3.3294]
[1726107737905,0.4249,135.23,135.09,17.75]
[1726107738103,3.3281,135.19,135.09,17.75]
[1726107739403,21.0779,135.2,135.09,17.75]
[1726107739605,21.0779,135.2,135.15,3.3289]
[1726107739896,17.75,135.2,135.09,17.75]
[1726107740698,3.3284,135.18,135.09,17.75]
[1726107740897,3.3284,135.18,135.08,1.3811]
[1726107741207,3.3284,135.18,135.09,17.75]
[1726107741909,3.3284,135.18,135.14,3.3292]
[1726107742403,3.3281,135.19,135.11,17.75]
[1726107742595,3.3281,135.19,135.15,3.3289]
[1726107742998,17.75,135.2,135.11,17.75]
[1726107743408,17.75,135.2,135.15,3.3289]
[1726107743807,17.75,135.2,135.11,17.75]
[1726107744005,17.75,135.2,135.15,3.3289]
[1726107744500,17.75,135.2,135.15,3.329]
[1726107745906,3.3281,135.19,135.15,3.329]
[1726107746803,17.75,135.22,135.12,17.75]
[1726107747012,17.75,135.22,135.13,2.6164]
[1726107747203,21.0774,135.22,135.17,3.3284]
[1726107747505,17.75,135.22,135.13,2.6164]
[1726107748410,17.75,135.22,135.17,3.3284]
[1726107748713,21.0774,135.22,135.17,3.3284]
[1726107749906,17.75,135.22,135.18,3.3282]
[1726107751709,17.75,135.22,135.15,3.3289]
[1726107751901,17.75,135.22,135.13,2.6164]
[1726107752610,17.75,135.24,135.15,17.75]
[1726107753198,17.75,135.24,135.2,3.3278]
[1726107754200,17.75,135.24,135.21,3.3275]
[1726107754404,17.75,135.24,135.15,17.75]
[1726107755208,17.75,135.24,135.2,3.3278]
[1726107756302,17.75,135.24,135.15,17.75]
[1726107756902,21.077,135.24,135.2,3.3278]
[1726107757517,17.75,135.24,135.2,3.3278]
[1726107758107,11.36,135.24,135.2,3.3278]
[1726107758602,11.36,135.24,135.21,3.3276]
[1726107759611,11.36,135.25,135.22,3.3273]
[1726107760201,11.36,135.25,135.19,2.6245]
[1726107760202,11.36,135.25,135.21,3.3275]
[1726107760408,11.36,135.24,135.19,2.6245]
[1726107761716,11.36,135.24,135.2,3.3277]
[1726107762119,11.36,135.24,135.16,11.36]
[1726107762611,11.36,135.22,135.19,3.328]
[1726107763014,11.36,135.22,135.16,11.36]
[1726107763210,11.36,135.22,135.19,3.3279]
[1726107763404,11.36,135.24,135.17,11.36]
[1726107763610,11.36,135.26,135.18,11.36]
[1726107764316,11.36,135.24,135.21,3.3275]
[1726107765616,11.36,135.24,135.18,11.36]
[1726107766008,11.36,135.24,135.15,2.6067]
[1726107766214,11.36,135.24,135.2,3.3278]
[1726107766617,11.36,135.24,135.17,11.36]
[1726107766818,11.36,135.24,135.2,3.3276]
[1726107767618,11.36,135.24,135.21,3.3276]
[1726107768015,3.3265,135.26,135.21,3.3276]
[1726107768216,11.36,135.24,135.21,3.3276]
[1726107768416,11.36,135.24,135.17,11.36]
[1726107768820,11.36,135.23,135.17,11.36]
[1726107769018,11.36,135.23,135.19,3.3279]
[1726107769313,11.36,135.23,135.17,11.36]
[1726107769521,11.36,135.23,135.2,3.3278]
[1726107770121,11.36,135.24,135.17,11.36]
[1726107770814,11.36,135.24,135.22,3.3273]
[1726107771125,11.36,135.24,135.18,11.36]
[1726107772929,14.6869,135.24,135.2,3.3278]
[1726107773314,11.36,135.24,135.21,3.3276]
[1726107773517,11.36,135.24,135.18,11.36]
[1726107773915,11.36,135.24,135.21,3.3275]
[1726107774820,11.36,135.24,135.22,3.3273]
[1726107775023,103.0294761,135.28,135.19,11.36]
[1726107775224,11.36,135.26,135.2,1.4216]
[1726107775420,11.36,135.26,135.22,3.3272]
[1726107776019,11.36,135.26,135.23,3.3271]
[1726107776528,14.6863,135.27,135.23,3.3271]
[1726107777128,11.36,135.25,135.2,1.4216]
[1726107777927,11.36,135.26,135.22,3.3273]
[1726107778130,11.36,135.26,135.2,12.7816]
[1726107778726,11.36,135.26,135.2,1.4216]
[1726107778928,11.36,135.26,135.2,12.7816]
[1726107779431,11.36,135.26,135.22,3.3272]
[1726107782330,11.36,135.27,135.23,3.3271]
[1726107782835,14.6861,135.27,135.22,3.3273]
[1726107783831,18.97383615,135.36,135.26,11.36]
[1726107784130,18.97383615,135.36,135.2,1.4216]
[1726107784131,0.4289,135.36,135.21,2.7526]
[1726107784334,11.36,135.32,135.29,3.3256]
[1726107785538,11.36,135.32,135.3,3.3254]
[1726107786339,11.36,135.32,135.29,3.3256]
[1726107786531,11.36,135.3,135.23,11.36]
[1726107787534,11.36,135.28,135.21,2.7526]
[1726107787734,11.36,135.28,135.22,11.36]
[1726107788730,14.6859,135.28,135.24,3.3267]
[1726107788930,0.4289,135.36,135.22,11.36]
[1726107789136,11.36,135.28,135.22,11.36]
[1726107789334,11.36,135.28,135.24,3.3268]
[1726107790936,11.36,135.28,135.21,2.7516]
[1726107790937,11.36,135.28,135.21,11.36]
[1726107791641,11.36,135.28,135.23,3.3271]
[1726107791642,14.6861,135.28,135.23,3.3271]
[1726107792342,0.4289,135.36,135.21,12.7668]
[1726107792343,14.6862,135.27,135.21,12.7668]
[1726107792943,11.36,135.27,135.23,3.3271]
[1726107793942,11.36,135.26,135.22,3.3273]
[1726107794144,0.4289,135.36,135.22,3.3273]
[1726107794345,11.36,135.26,135.21,4.7343]
[1726107794648,11.36,135.26,135.21,1.4068]
[1726107795843,11.36,135.26,135.22,3.3271]
[1726107797844,11.36,135.26,135.21,1.4068]
[1726107797845,3.3258,135.29,135.24,3.3267]
[1726107798044,11.36,135.28,135.21,12.7668]
[1726107798347,19.39367463,135.36,135.22,11.36]
[1726107798651,11.36,135.28,135.22,12.6943]
[1726107798949,11.36,135.28,135.25,3.3265]
[1726107799150,11.36,135.28,135.22,12.6943]
[1726107799351,0.4289,135.36,135.22,12.6943]
[1726107799650,11.36,135.28,135.22,12.6943]
[1726107799852,11.36,135.28,135.22,1.3343]
[1726107800549,14.6861,135.28,135.23,3.327]
[1726107800752,11.36,135.28,135.23,3.327]
[1726107800948,11.36,135.26,135.22,3.3272]
[1726107801756,11.36,135.26,135.21,3.3275]
[1726107801950,11.36,135.25,135.21,3.3275]
[1726107802150,11.36,135.25,135.17,1.341]
[1726107802347,11.36,135.26,135.21,11.36]
[1726107802550,0.4289,135.36,135.21,11.36]
[1726107802551,11.36,135.27,135.21,11.36]
[1726107802750,11.36,135.27,135.23,3.3269]
[1726107803653,11.36,135.27,135.21,11.36]
[1726107803654,14.6862,135.27,135.21,11.36]
[1726107803949,11.36,135.27,135.21,11.36]
[1726107804254,11.36,135.27,135.24,3.3268]
[1726107804456,0.4289,135.36,135.21,11.36]
[1726107804652,1.17374128,135.35,135.22,12.7117]
[1726107804956,11.36,135.29,135.25,3.3265]
[1726107805251,0.4289,135.36,135.23,12.7661]
[1726107805456,11.36,135.3,135.23,12.7661]
[1726107805658,11.36,135.3,135.23,1.4061]
[1726107805851,0.4289,135.36,135.25,3.3264]
[1726107805852,11.36,135.29,135.25,3.3264]
[1726107806954,11.36,135.29,135.23,2.7059]
[1726107807461,11.36,135.29,135.25,3.3265]
[1726107807761,11.36,135.29,135.23,2.7059]
[1726107808156,11.36,135.29,135.26,3.3262]
[1726107808554,11.36,135.29,135.27,3.3261]